fUST/lending_fUST_20240118
["ID","MTS","AMOUNT","RATE_DAILY","PERIOD"]
[312003752,1705541441650,-198.957615,0.00029315,2]
[312003754,1705541441660,-153.0,0.00029315,2]
[312003756,1705541441669,-302.0599094,0.00029315,2]
[312003758,1705541441678,-198.957615,0.00029315,2]
[312003760,1705541441687,-153.0,0.00029315,2]
[312003762,1705541441697,-198.957615,0.00029315,2]
[312003763,1705541441706,-306.0,0.00029315,2]
[312003765,1705541441715,-153.0,0.00029315,2]
[312003767,1705541441725,-153.0,0.00029315,2]
[312003769,1705541441736,-397.9152297,0.00029315,2]
[312003771,1705541441745,-198.957615,0.00029315,2]
[312003773,1705541441754,-153.0,0.00029315,2]
[312003776,1705541441763,-153.0,0.00029315,2]
[312003778,1705541441772,-198.957615,0.00029315,2]
[312003780,1705541441782,-153.0,0.00029315,2]
[312003782,1705541441791,-153.0,0.00029315,2]
[312003784,1705541441801,-198.957615,0.00029315,2]
[312003786,1705541441811,-306.0,0.00029315,2]
[312003788,1705541441821,-153.0,0.00029315,2]
[312003790,1705541441831,-198.957615,0.00029315,2]
[312003792,1705541441840,-198.957615,0.00029315,2]
[312003794,1705541441849,-153.0,0.00029315,2]
[312003796,1705541441858,-198.957615,0.00029315,2]
[312003798,1705541441867,-198.957615,0.00029315,2]
[312003800,1705541441876,-198.957615,0.00029315,2]
[312003802,1705541441885,-153.0,0.00029315,2]
[312003804,1705541441893,-153.0,0.00029315,2]
[312003805,1705541441902,-153.0,0.00029315,2]
[312003808,1705541441912,-153.0,0.00029315,2]
[312003810,1705541441921,-153.0,0.00029315,2]
[312003811,1705541441930,-153.0,0.00029315,2]
[312003813,1705541441939,-153.0,0.00029315,2]
[312003816,1705541441949,-153.0,0.00029315,2]
[312003818,1705541441958,-198.957615,0.00029315,2]
[312003820,1705541441967,-154.3206554,0.00029315,2]
[312003822,1705541441976,-306.9403809,0.00029315,2]
[312003823,1705541441985,-155.4425795,0.00029315,2]
[312003826,1705541441995,-202.6281398,0.00029315,2]
[312003828,1705541442004,-151.0,0.0002946,2]
[312003838,1705541442089,-213.00013457,0.000295,30]
[312003840,1705541442099,-5000.0,0.00029581,5]
[312003842,1705541442109,-153.0,0.00029589,2]
[312003844,1705541442118,-153.0,0.00029589,2]
[312003846,1705541442127,-153.0,0.00029589,2]
[312003848,1705541442136,-153.0,0.00029589,2]
[312003850,1705541442145,-153.8172095,0.00029589,2]
[312003852,1705541442154,-469.0,0.000296,2]
[312003854,1705541442163,-581.664281,0.00029687,2]
[312003856,1705541442172,-11222.43174104,0.000298,7]
[312003858,1705541442181,-248.31833762,0.00029854,2]
[312003860,1705541442191,-164.46488544,0.00029885,2]
[312003862,1705541442200,-150.0,0.00029898,2]
[312003864,1705541442210,-150.0,0.00029899,2]
[312003866,1705541442219,-155.73290514,0.00029899,2]
[312003868,1705541442228,-405.56628783,0.000299,2]
[312003870,1705541442238,-1500.0,0.000299,2]
[312003872,1705541442247,-151.0,0.00029999,2]
[312003874,1705541442255,-151.0,0.00029999,2]
[312003876,1705541442264,-464.13177882,0.0003,4]
[312003878,1705541442273,-287.23235621,0.0003,4]
[312003881,1705541442282,-195.12427019,0.0003,4]
[312003882,1705541442292,-687.75462876,0.0003,4]
[312003885,1705541442302,-682.08739099,0.0003,3]
[312003887,1705541442311,-154.9690062,0.0003,4]
[312003889,1705541442320,-365.41158393,0.0003,4]
[312003891,1705541442331,-243.87038791,0.0003,4]
[312003893,1705541442340,-154.9690062,0.0003,2]
[312003895,1705541442349,-640.68851149,0.0003,4]
[312003896,1705541442358,-285.71516437,0.0003,2]
[312003898,1705541442368,-900.99114894,0.0003,2]
[312003900,1705541442377,-166.66972196,0.0003,2]
[312003903,1705541442387,-29879.88115666,0.0003,2]
[312003904,1705541442396,-299.29248554,0.0003,2]
[312003907,1705541442406,-6191.01737544,0.0003,2]
[312003909,1705541442417,-48398.84958837,0.0003,2]
[312003911,1705541442427,-2191.383905,0.0003,2]
[312003912,1705541442436,-1092.47313996,0.0003,3]
[312003914,1705541442445,-34112.02518421,0.0003,3]
[312003916,1705541442455,-2318.19237376,0.0003,4]
[312003918,1705541442464,-200.39581659,0.0003,4]
[312003921,1705541442474,-31963.81810331,0.0003,4]
[312003923,1705541442483,-1152.97825558,0.0003,2]
[312003925,1705541442494,-430.42155491,0.0003,4]
[312003926,1705541442504,-157.77918193,0.0003,2]
[312003929,1705541442515,-157.63798245,0.0003,4]
[312003931,1705541442524,-156.22185642,0.0003,4]
[312003933,1705541442533,-3759.06405,0.0003,2]
[312003934,1705541442542,-150.0,0.0003,4]
[312003937,1705541442552,-151.0,0.0003,2]
[312003939,1705541442562,-151.0,0.0003,2]
[312003941,1705541442571,-282.748643,0.0003,2]
[312003943,1705541442582,-282.748643,0.0003,2]
[312003945,1705541442590,-282.748643,0.0003,2]
[312003947,1705541442599,-282.748643,0.0003,2]
[312003949,1705541442608,-151.0,0.0003,2]
[312003951,1705541442617,-262.0,0.0003,2]
[312003952,1705541442627,-151.0,0.00030023,2]
[312003954,1705541442637,-164.46488544,0.00030085,7]
[312003956,1705541442648,-150.0,0.000301,2]
[312003958,1705541442662,-245.003184,0.000301,2]
[312003960,1705541442672,-153.0,0.00030137,2]
[312003963,1705541442681,-153.0,0.00030137,2]
[312003965,1705541442692,-153.0,0.00030137,2]
[312003966,1705541442701,-153.0,0.00030137,2]
[312003968,1705541442711,-153.0,0.00030137,2]
[312003971,1705541442720,-153.0,0.00030137,2]
[312003973,1705541442732,-153.0,0.00030137,2]
[312003975,1705541442741,-153.0,0.00030137,2]
[312003977,1705541442750,-153.0,0.00030137,2]
[312003979,1705541442759,-153.0,0.00030137,2]
[312003981,1705541442769,-153.0,0.00030137,2]
[312003983,1705541442778,-153.0,0.00030137,2]
[312003985,1705541442786,-153.0,0.00030137,2]
[312003987,1705541442795,-153.0,0.00030137,2]
[312003989,1705541442804,-153.0,0.00030137,2]
[312003991,1705541442813,-153.0,0.00030137,2]
[312003993,1705541442822,-153.0,0.00030137,2]
[312003995,1705541442831,-153.0,0.00030137,2]
[312003997,1705541442840,-153.0,0.00030137,2]
[312003999,1705541442850,-153.0,0.00030137,2]
[312004001,1705541442858,-153.0,0.00030137,2]
[312004003,1705541442867,-153.0,0.00030137,2]
[312004005,1705541442876,-153.0,0.00030137,2]
[312004007,1705541442885,-153.0,0.00030137,2]
[312004009,1705541442894,-153.0,0.00030137,2]
[312004011,1705541442903,-153.0,0.00030137,2]
[312004013,1705541442912,-153.0,0.00030137,2]
[312004015,1705541442921,-153.0,0.00030137,2]
[312004017,1705541442930,-153.0,0.00030137,2]
[312004019,1705541442939,-157.1046579,0.00030137,2]
[312004021,1705541442949,-153.0,0.00030137,2]
[312004023,1705541442958,-153.0,0.00030137,2]
[312004025,1705541442967,-153.0,0.00030137,2]
[312004027,1705541442976,-153.0,0.00030137,2]
[312004029,1705541442985,-153.0,0.00030137,2]
[312004031,1705541442994,-198.957615,0.00030137,2]
[312004033,1705541443003,-153.0,0.00030137,2]
[312004035,1705541443012,-198.957615,0.00030137,2]
[312004037,1705541443023,-153.0,0.00030137,2]
[312004039,1705541443032,-153.0,0.00030137,2]
[312004041,1705541443041,-198.957615,0.00030137,2]
[312004043,1705541443050,-198.957615,0.00030137,2]
[312004045,1705541443059,-198.957615,0.00030137,2]
[312004047,1705541443068,-198.9576152,0.00030137,2]
[312004049,1705541443078,-41817.8022301,0.00030137,2]
[312004051,1705541443087,-155.0,0.00030137,2]
[312004053,1705541443095,-234.790116,0.00030142,2]
[312004055,1705541443105,-5000.0,0.00030164,7]
[312004057,1705541443114,-162.031113,0.00030198,2]
[312004059,1705541443123,-5000.0,0.00030227,7]
[312004061,1705541443131,-248.31833762,0.00030308,7]
[312004063,1705541443140,-200.0,0.00030434,15]
[312004065,1705541443150,-200.0,0.00030434,15]
[312004067,1705541443159,-368.0,0.00030434,15]
[312004069,1705541443168,-246.39706185,0.000305,2]
[312004071,1705541443176,-248.31833762,0.0003051,7]
[312004072,1705541443186,-620.00000232,0.00030561,2]
[312004074,1705541443195,-620.00865407,0.00030561,2]
[312004077,1705541443206,-4999.97,0.00030562,2]
[312004079,1705541443215,-2416.64,0.00030562,2]
[312004080,1705541443225,-5000.06,0.00030565,2]
[312004083,1705541443234,-4999.98,0.00030567,2]
[312004085,1705541443245,-1965.91,0.00030568,2]
[312004086,1705541443254,-5000.0,0.0003057,2]
[312004089,1705541443264,-4999.98,0.00030571,2]
[312004091,1705541443273,-4999.98,0.00030571,2]
[312004092,1705541443283,-4590.71,0.00030572,2]
[312004095,1705541443294,-4999.99,0.00030575,2]
[312004096,1705541443304,-151.0,0.00030577,2]
[312004098,1705541443314,-151.0,0.00030577,2]
[312004101,1705541443324,-3707.17,0.00030577,2]
[312004103,1705541443334,-4999.97,0.00030577,2]
[312004105,1705541443344,-398.38,0.00030577,2]
[312004107,1705541443353,-4999.98,0.00030578,2]
[312004108,1705541443362,-4999.99,0.00030578,2]
[312004110,1705541443371,-282.748643,0.00030578,2]
[312004113,1705541443380,-282.748643,0.00030578,2]
[312004114,1705541443390,-4999.98,0.00030582,2]
[312004116,1705541443399,-4999.99,0.00030582,2]
[312004119,1705541443408,-4999.99,0.00030583,2]
[312004120,1705541443418,-4999.98,0.00030583,2]
[312004122,1705541443427,-4999.98,0.00030584,2]
[312004124,1705541443436,-4999.98,0.00030585,2]
[312004126,1705541443445,-5000.0,0.00030585,2]
[312004128,1705541443454,-151.0,0.00030587,2]
[312004130,1705541443465,-4051.1,0.0003059,2]
[312004132,1705541443474,-5000.0,0.00030592,2]
[312004134,1705541443482,-4999.99,0.00030593,2]
[312004136,1705541443491,-4009.18,0.00030594,2]
[312004139,1705541443510,-5000.0,0.00030597,2]
[312004141,1705541443521,-5000.0,0.00030597,2]
[312004143,1705541443531,-948.96,0.00030598,2]
[312004145,1705541443540,-4142.24,0.00030598,2]
[312004147,1705541443550,-4999.98,0.000306,2]
[312004149,1705541443560,-4999.98,0.00030602,2]
[312004151,1705541443569,-990.79,0.00030603,2]
[312004153,1705541443579,-4999.98,0.00030604,2]
[312004155,1705541443589,-4999.99,0.00030604,2]
[312004157,1705541443599,-1792.08,0.00030605,2]
[312004159,1705541443609,-581.664281,0.00030607,2]
[312004161,1705541443618,-5000.0,0.00030607,2]
[312004164,1705541443628,-172.95,0.0003066,30]
[312004166,1705541443639,-865.0,0.0003066,30]
[312004167,1705541443649,-210.0,0.0003067,30]
[312004170,1705541443662,-865.0,0.0003067,30]
[312004172,1705541443672,-210.0,0.0003068,30]
[312004174,1705541443682,-243.29,0.0003068,30]
[312004176,1705541443692,-865.0,0.0003068,30]
[312004178,1705541443702,-210.0,0.0003069,30]
[312004180,1705541443711,-248.31833762,0.00030824,7]
[312004182,1705541443721,-269.0,0.000309,3]
[312004184,1705541443731,-1500.0,0.000309,2]
[312004186,1705541443741,-1000.0,0.00030926,7]
[312004188,1705541443751,-248.31833762,0.0003094,7]
[312004190,1705541443760,-8655.00217283,0.00031,4]
[312004215,1705541443993,-1939.6790566,0.00031,4]
[312004251,1705541444345,154.98450155,0.00017816,3]
[312004267,1705541444483,-178.79017593,0.00019796,2]
[312004268,1705541444493,-500.0,0.00028897,4]
[312004270,1705541444504,-500.0,0.00028897,4]
[312004272,1705541444514,-500.0,0.00028897,4]
[312004274,1705541444525,-500.0,0.00028897,4]
[312004276,1705541444534,-500.0,0.00028897,4]
[312004278,1705541444544,-500.0,0.00028897,4]
[312004280,1705541444553,-500.0,0.00028897,4]
[312004282,1705541444562,-500.0,0.00028897,4]
[312004284,1705541444571,-500.0,0.00028897,4]
[312004286,1705541444579,-500.0,0.00028897,4]
[312004288,1705541444589,-500.0,0.00028897,4]
[312004290,1705541444598,-76.69994193,0.00028897,4]
[312004293,1705541444619,-423.30005807,0.00028897,4]
[312004295,1705541444629,-500.0,0.00028897,4]
[312004297,1705541444638,-500.0,0.00028897,4]
[312004299,1705541444648,-500.0,0.00028897,4]
[312004301,1705541444659,-500.0,0.00028897,4]
[312004303,1705541444669,-500.0,0.00028897,4]
[312004305,1705541444680,-309.19746732,0.00028897,4]
[312004307,1705541444688,-230.68550647,0.00028897,4]
[312004309,1705541444697,-500.0,0.00028897,4]
[312004311,1705541444708,-500.0,0.00028897,4]
[312004313,1705541444717,-630.83456347,0.00028897,4]
[312004315,1705541444726,-500.0,0.00028897,4]
[312004316,1705541444736,-500.0,0.00028897,4]
[312004317,1705541444745,-500.0,0.00028897,4]
[312004318,1705541444754,-500.0,0.00028897,4]
[312004319,1705541444762,-500.0,0.00028897,4]
[312004320,1705541444771,-3612.3390383,0.000289,2]
[312004321,1705541444781,-3612.3390383,0.000289,2]
[312004322,1705541444790,-3612.3390383,0.000289,2]
[312004323,1705541444799,-1858.42575486,0.000289,2]
[312004324,1705541444812,-1753.91328344,0.000289,2]
[312004325,1705541444822,-3612.3390383,0.000289,2]
[312004326,1705541444832,-3612.3390383,0.000289,2]
[312004327,1705541444842,-3612.3390383,0.000289,2]
[312004328,1705541444850,-1705.8307688,0.000289,2]
[312004329,1705541444864,-1906.5082695,0.000289,2]
[312004330,1705541444872,-2844.65262348,0.00031,2]
[312004331,1705541444881,-10321.27481775,0.00031,2]
[312004332,1705541444890,-8095.16745491,0.00031,2]
[312004333,1705541444903,-17073.89205,0.00031,2]
[312004346,1705541445114,-759.25473075,0.00019795,2]
[312004351,1705541445151,-759.25473075,0.00019795,2]
[312004356,1705541445193,-12000.0,0.00019795,2]
[312004360,1705541445222,-192.58036642,0.00019795,2]
[312004365,1705541445253,-595.95954932,0.00019796,2]
[312004372,1705541445312,-1198.69924974,0.00019797,2]
[312004374,1705541445328,-24.46324999,0.00019797,2]
[312004376,1705541445338,-1154.07762926,0.00024902,3]
[312004386,1705541445419,-2501.18237074,0.00024902,3]
[312004388,1705541445431,-155.92150392,0.0002491,2]
[312004390,1705541445441,-500.0,0.00028897,4]
[312004392,1705541445452,-500.0,0.00028897,4]
[312004394,1705541445461,-500.0,0.00028897,4]
[312004396,1705541445471,-500.0,0.00028897,4]
[312004398,1705541445481,-500.0,0.00028897,4]
[312004400,1705541445490,-312.95244353,0.00028897,4]
[312004402,1705541445499,-500.0,0.00028897,4]
[312004404,1705541445507,-153.0,0.00029589,2]
[312004406,1705541445517,-21792.01336418,0.00031,2]
[312004408,1705541445527,-150.0,0.00031,4]
[312004410,1705541445537,-151.0,0.00031,2]
[312004412,1705541445547,-151.0,0.00031,2]
[312004414,1705541445557,-919.160347,0.00031,3]
[312004416,1705541445567,-282.748643,0.00031,2]
[312004418,1705541445580,-282.748643,0.00031,2]
[312004420,1705541445589,-97008.73081987,0.00031,4]
[312004422,1705541445598,-164.46488544,0.00031044,7]
[312004425,1705541445607,-150.5,0.0003112,30]
[312004428,1705541445616,-150.5,0.0003113,30]
[312004431,1705541445626,-150.5,0.0003113,30]
[312004434,1705541445635,-150.5,0.0003114,30]
[312004437,1705541445644,-150.5,0.0003114,30]
[312004440,1705541445654,-151.0,0.0003115,2]
[312004443,1705541445665,-164.46488544,0.00031155,7]
[312004446,1705541445674,-164.46488544,0.00031333,7]
[312004449,1705541445683,-155.0,0.00031507,2]
[312004452,1705541445692,-581.664281,0.00031526,2]
[312004455,1705541445702,-155.36177767,0.00031578,2]
[312004458,1705541445711,-1000.0,0.00031595,2]
[312004460,1705541445720,-1000.0,0.00031603,2]
[312004462,1705541445731,-1000.0,0.00031608,2]
[312004464,1705541445740,-1000.0,0.00031608,2]
[312004466,1705541445749,-1000.0,0.00031619,2]
[312004468,1705541445758,-1000.0,0.00031627,2]
[312004470,1705541445767,-162.031113,0.00031629,2]
[312004472,1705541445779,-1000.0,0.00031639,2]
[312004474,1705541445788,-1000.0,0.00031674,2]
[312004476,1705541445797,-1000.0,0.00031676,2]
[312004478,1705541445806,-1000.0,0.0003168,2]
[312004480,1705541445815,-1000.0,0.00031695,2]
[312004482,1705541445825,-1000.0,0.00031695,2]
[312004483,1705541445834,-215.39207813,0.00031695,2]
[312004485,1705541445845,-154.81467578,0.00031705,7]
[312004487,1705541445854,-1000.0,0.00031707,2]
[312004489,1705541445863,-151.0,0.00031713,2]
[312004491,1705541445872,-1000.0,0.00031721,2]
[312004493,1705541445882,-803.67962599,0.00031741,2]
[312004496,1705541445898,-401.1997662,0.00030137,2]
[312004498,1705541445907,-196.32037401,0.00031741,2]
[312004500,1705541445916,-1000.0,0.0003175,2]
[312004502,1705541445925,-591.07118367,0.00031753,2]
[312004521,1705541446095,1198.69924974,0.00019796,2]
[312004525,1705541446120,496.9203919,0.00019796,2]
[312005106,1705541595300,-163.2705418,0.0001907,2]
[312005107,1705541595326,-3765.51120972,0.00019796,2]
[312005108,1705541595422,-80.17921942,0.00019796,2]
[312005110,1705541602407,-2149.64664466,0.00019691,2]
[312005111,1705541602537,-43.87033969,0.00019691,2]
[312005112,1705541606022,-2309.12312944,0.00019796,2]
[312005113,1705541606230,-47.12496182,0.00019796,2]
[312005115,1705541622320,-1539.41541962,0.00019796,2]
[312005116,1705541622427,-31.41664122,0.00019796,2]
[312005117,1705541638038,-1282.84618302,0.00019796,2]
[312005118,1705541638251,-26.18053435,0.00019796,2]
[312005119,1705541645641,-514.4911212,0.00019015,2]
[312005120,1705541645804,-10.4998188,0.00019015,2]
[312005121,1705541656163,-1282.84618302,0.00019796,2]
[312005122,1705541656304,-26.18053435,0.00019796,2]
[312005124,1705541676065,-668.36286136,0.00019796,2]
[312005125,1705541676213,-13.64005839,0.00019796,2]
[312005126,1705541698301,-668.36286136,0.00019796,2]
[312005127,1705541698413,-13.64005839,0.00019796,2]
[312005128,1705541712928,-3943.51239108,0.00019015,2]
[312005129,1705541713144,-80.47984472,0.00019015,2]
[312005130,1705541714243,-668.36286136,0.00019796,2]
[312005131,1705541714362,-13.64005839,0.00019796,2]
[312005132,1705541730272,-668.36286136,0.00019796,2]
[312005133,1705541730549,-13.64005839,0.00019796,2]
[312005134,1705541748075,-668.36286136,0.00019796,2]
[312005135,1705541748180,-13.64005839,0.00019796,2]
[312005136,1705541766081,-668.36286136,0.00019796,2]
[312005137,1705541766316,-13.64005839,0.00019796,2]
[312005138,1705541790170,-668.36286136,0.00019796,2]
[312005139,1705541790294,-13.64005839,0.00019796,2]
[312005140,1705541804460,-12000.0,0.00018909,2]
[312005141,1705541804558,-1759.2755042,0.00018909,2]
[312005142,1705541808196,-668.36286136,0.00019796,2]
[312005143,1705541808403,-13.64005839,0.00019796,2]
[312005144,1705541826036,-668.36286136,0.00019796,2]
[312005145,1705541826154,-13.64005839,0.00019796,2]
[312005146,1705541841041,-1265.64175415,0.00019333,2]
[312005147,1705541841067,-178.52849899,0.00019334,2]
[312005148,1705541841175,-29.47286231,0.00019334,2]
[312005149,1705541842137,-398.96516291,0.00019796,2]
[312005150,1705541842267,-8.14214618,0.00019796,2]
[312005151,1705541848557,-1227.4904637,0.00019333,2]
[312005152,1705541848670,-25.05082579,0.00019333,2]
[312005153,1705541950832,-260.95401004,0.00019766,2]
[312005154,1705541950861,-172.82867454,0.00019767,2]
[312005155,1705541951107,-8.85270785,0.00019767,2]
[312005156,1705541966623,-12000.0,0.00018867,2]
[312005157,1705541966868,-12000.0,0.00018867,2]
[312005158,1705541966945,-900.0,0.00018867,2]
[312005159,1705541991938,-245.0,0.00018869,2]
[312005160,1705541992132,-5.0,0.00018869,2]
[312005161,1705542016766,-1259.94495378,0.00018862,2]
[312005162,1705542016875,-25.71316232,0.00018862,2]
[312005164,1705542033514,10000.0,0.00018501,2]
[312005166,1705542083270,10000.0,0.000251,10]
[312005168,1705542105840,10000.0,0.00018501,2]
[312005169,1705542119259,10000.0,0.00018501,2]
[312005170,1705542175377,-154.9690062,0.00019743,2]
[312005171,1705542175404,-174.94837462,0.00019744,2]
[312005172,1705542175481,-6.73300777,0.00019744,2]
[312005173,1705542178870,-280.45304927,0.00019743,2]
[312005174,1705542178979,-5.72353162,0.00019743,2]
[312005176,1705542363168,-154.9690062,0.00019177,2]
[312005177,1705542363195,-169.1722905,0.00019178,2]
[312005178,1705542363241,-6.6151285,0.00019178,2]
[312005179,1705542365566,154.9690062,0.00019177,2]
[312005180,1705542365945,169.1722905,0.00019177,2]
[312005181,1705542365974,91.78171954,0.00019177,2]
[312005182,1705542368504,-3412.29184888,0.00019429,2]
[312005183,1705542368624,-69.63860916,0.00019429,2]
[312005184,1705542418801,-12000.0,0.0001884,2]
[312005185,1705542419021,-12000.0,0.0001884,2]
[312005186,1705542419080,-900.0,0.0001884,2]
[312005187,1705542499424,-245.0,0.00018818,2]
[312005188,1705542499538,-5.0,0.00018818,2]
[312005190,1705542528871,-2000.61120852,0.00019614,2]
[312005191,1705542528897,-594.74992556,0.00019711,2]
[312005192,1705542528924,-108.16626507,0.00019712,2]
[312005193,1705542528997,-55.17402855,0.00019712,2]
[312005194,1705542530454,175.10808693,0.00019613,2]
[312005195,1705542630636,-4035.5028,0.00019792,3]
[312005196,1705542630757,-82.3572,0.00019792,3]
[312005226,1705542634365,-1601.66359203,0.00019799,2]
[312005227,1705542634377,-12109.42623589,0.00019799,2]
[312005228,1705542634386,-521.75377805,0.000198,2]
[312005229,1705542634395,-154.9690062,0.000198,2]
[312005230,1705542634404,-2037.73028477,0.000198,2]
[312005231,1705542634413,-18891.91469266,0.000198,2]
[312005232,1705542634423,-260.95401004,0.00019801,2]
[312005233,1705542634433,-1992.22396465,0.00019801,2]
[312005234,1705542634442,-286.17658089,0.00019801,2]
[312005235,1705542634451,-242.95252514,0.00019801,2]
[312005236,1705542634460,-2033.10997564,0.00019802,2]
[312005237,1705542634469,-14936.27658479,0.00019802,2]
[312005319,1705542638430,-2432.67478595,0.00019802,2]
[312005320,1705542638442,-2069.9093597,0.00019802,2]
[312005321,1705542638492,-17500.40444634,0.00019802,2]
[312005322,1705542638501,-2001.1665667,0.00019803,2]
[312005323,1705542638509,-154.9690062,0.00019803,2]
[312005324,1705542638518,-1292.89594537,0.00019803,2]
[312005325,1705542638527,-155.22662313,0.00019803,2]
[312005326,1705542638536,-1265.64175415,0.00019804,2]
[312005327,1705542638545,-15210.0058104,0.00019804,2]
[312005328,1705542638554,-197.24656908,0.00019807,2]
[312005329,1705542638565,-294.95137346,0.00019807,2]
[312005330,1705542638575,-546.15273207,0.00019809,2]
[312005331,1705542638584,-183.96535885,0.00019809,2]
[312005332,1705542638593,-155.29129351,0.00019814,2]
[312005333,1705542638602,-155.19270424,0.00019814,2]
[312005334,1705542638611,-556.24360137,0.00019814,2]
[312005335,1705542638620,-217.41679084,0.00019825,2]
[312005336,1705542638629,-323.76164702,0.0001987,2]
[312005337,1705542638639,-1081.7052763,0.00019874,2]
[312005338,1705542638647,-2022.48015883,0.00019879,2]
[312005339,1705542638657,-362.35900002,0.00019879,2]
[312005340,1705542638666,-523.17458133,0.00019879,2]
[312005341,1705542638675,-2109.52895099,0.00019879,2]
[312005342,1705542638684,-502.2185331,0.000199,2]
[312005343,1705542638693,-618.2593415,0.00019984,2]
[312005344,1705542638703,-689.83246594,0.00019996,2]
[312005345,1705542638712,-2082.71954556,0.0002,2]
[312005346,1705542638721,-980.59542492,0.0002,2]
[312005347,1705542638731,-200.0,0.0002,2]
[312005348,1705542638741,-300.0,0.0002,2]
[312005349,1705542638750,-678.88489075,0.0002,2]
[312005350,1705542638759,-882.95450762,0.0002,2]
[312005351,1705542638768,-1201.46831059,0.0002,2]
[312005352,1705542638777,-241.26198092,0.0002,2]
[312005353,1705542638786,-155.94950765,0.0002,2]
[312005354,1705542638796,-156.78372952,0.0002,2]
[312005355,1705542638805,-65453.0,0.0002,2]
[312005356,1705542638818,-155.54708111,0.0002,2]
[312005357,1705542638827,-275.83436774,0.00020093,2]
[312005358,1705542638837,-6136.19094745,0.00020093,2]
[312005359,1705542638846,-470.34681749,0.00020093,2]
[312005360,1705542638855,-1245.85875436,0.00020093,2]
[312005361,1705542638864,-155.32671549,0.00020093,2]
[312005362,1705542638874,-563.09143641,0.00020093,2]
[312005363,1705542638883,-157.44981842,0.00020093,2]
[312005364,1705542638892,-483.36652394,0.00020093,2]
[312005365,1705542638901,-3006.57049859,0.00020094,2]
[312005366,1705542638911,-524.258302,0.00020095,2]
[312005367,1705542638920,-200.0,0.00020792,2]
[312005368,1705542638929,-1824.64474457,0.00021,2]
[312005369,1705542638938,-327.24959811,0.00021,2]
[312005370,1705542638947,-1815.75822214,0.00021,2]
[312005371,1705542638956,-1000.0,0.000211,2]
[312005372,1705542638966,-502.21853308,0.00021192,2]
[312005373,1705542638975,-9112.94247828,0.0002155,2]
[312005374,1705542638984,-166.666666,0.00021918,2]
[312005375,1705542638994,-188.14444143,0.00022,2]
[312005376,1705542639003,-154.98450155,0.00022,2]
[312005377,1705542639016,-3959.1053351,0.00022,2]
[312005378,1705542639026,-293.23530462,0.00022,4]
[312005379,1705542639035,-155.15540084,0.00022,2]
[312005380,1705542639044,-166.666666,0.00022431,2]
[312005381,1705542639053,-502.21853308,0.00022484,2]
[312005382,1705542639064,-280.0,0.00022871,7]
[312005383,1705542639073,-166.666666,0.00022944,2]
[312005384,1705542639083,-2000.0,0.000232,2]
[312005385,1705542639094,-2000.0,0.0002321,2]
[312005386,1705542639103,-2000.0,0.0002322,2]
[312005387,1705542639112,-2000.0,0.0002323,2]
[312005388,1705542639121,-2000.0,0.0002324,2]
[312005389,1705542639130,-2000.0,0.0002325,2]
[312005390,1705542639139,-2000.0,0.0002326,2]
[312005391,1705542639148,-2000.0,0.0002327,2]
[312005392,1705542639157,-2000.0,0.0002328,2]
[312005393,1705542639167,-2000.0,0.0002329,2]
[312005394,1705542639176,-2000.0,0.000233,2]
[312005395,1705542639186,-2000.0,0.0002331,2]
[312005396,1705542639195,-2000.0,0.0002332,2]
[312005397,1705542639204,-2000.0,0.0002333,2]
[312005398,1705542639213,-2000.0,0.0002334,2]
[312005399,1705542639222,-2000.0,0.0002335,2]
[312005400,1705542639231,-2000.0,0.0002336,2]